bitfinex/quotes_ETHUSD_20250106
["timestamp","ask_amount","ask_price","bid_price","bid_amount"]
[1736186414591,2.71962,3677.0,3676.7,35.0]
[1736186414788,2.71962,3677.0,3676.8,0.9039]
[1736186415152,2.71968,3676.9,3676.8,0.9039]
[1736186416072,2.71975,3676.8,3676.7,35.0]
[1736186416476,14.77145432,3676.8,3676.7,35.0]
[1736186418273,11.62925,3676.8,3676.7,35.0]
[1736186419615,10.71975,3676.8,3676.7,35.0]
[1736186419894,8.30508,3676.8,3676.7,35.0]
[1736186420673,9.47225,3676.8,3676.7,35.0]
[1736186422057,9.15993,3676.8,3676.7,35.0]
[1736186422459,5.71975,3676.8,3676.7,35.0]
[1736186423486,9.03925,3676.8,3676.7,35.0]
[1736186423876,5.71975,3676.8,3676.7,35.0]
[1736186424073,6.71549,3676.8,3676.7,35.0]
[1736186425099,2.72005,3676.4,3676.3,0.9361]
[1736186426004,2.72005,3676.4,3676.3,35.9361]
[1736186426499,2.7199,3676.7,3676.3,35.9361]
[1736186426706,2.64168678,3677.2,3676.3,35.9361]
[1736186427005,2.71962,3677.0,3676.4,0.9341]
[1736186427159,1.68308678,3677.2,3676.4,0.9341]
[1736186427358,2.71969,3676.9,3676.4,0.9341]
[1736186429333,3.25218692,3677.3,3676.4,0.9341]
[1736186429334,2.71978,3676.8,3676.4,0.9341]
[1736186429492,2.71978,3676.8,3676.5,0.94304608]
[1736186430375,2.71978,3676.8,3676.6,35.0]
[1736186430985,2.71978,3676.8,3676.1,0.0075]
[1736186431193,2.71978,3676.8,3676.3,0.0075]
[1736186431401,2.96298832,3676.8,3676.2,0.9927]
[1736186431607,2.72012,3676.3,3676.1,1.13800673]
[1736186432122,2.72012,3676.3,3676.2,35.0]
[1736186433684,0.9502,3676.6,3676.2,35.0]
[1736186433890,2.72005,3676.4,3676.2,35.0]
[1736186435538,7.72012,3676.3,3676.2,35.0]
[1736186435937,5.0,3676.3,3675.7,1.13800673]
[1736186436233,2.72043,3675.9,3675.7,1.13800673]
[1736186436385,2.72049,3675.8,3675.7,1.13800673]
[1736186437018,2.72049,3675.8,3675.7,36.13800673]
[1736186437347,3.359592,3675.8,3675.7,1.13800673]
[1736186437555,2.72071,3675.5,3675.4,1.13800673]
[1736186437712,11.26918032,3675.5,3675.4,1.13800673]
[1736186438243,14.26918032,3675.5,3675.4,1.13800673]
[1736186438445,2.72131,3674.7,3674.6,1.41455747]
[1736186438592,2.72131,3674.7,3674.6,36.41455747]
[1736186439120,5.7303,3674.7,3674.6,36.41455747]
[1736186439329,5.0154,3674.7,3674.6,36.41455747]
[1736186439822,5.0154,3674.7,3674.6,35.0]
[1736186441248,4.7801,3674.7,3674.6,35.0]
[1736186441415,5.625244,3674.7,3674.1,0.9428]
[1736186441619,2.72165,3674.3,3674.1,0.9428]
[1736186441827,0.845144,3674.7,3674.1,0.9428]
[1736186442166,2.7216,3674.3,3674.2,35.0]
[1736186442349,7.7216,3674.3,3674.2,35.0]
[1736186443036,2.7216,3674.3,3674.2,35.0]
[1736186443231,2.59827032,3674.5,3673.8,0.9124]
[1736186443232,2.72172,3674.2,3673.8,0.9124]
[1736186443622,2.72172,3674.2,3673.9,35.0]
[1736186446839,4.21320612,3674.9,3673.9,35.0]
[1736186447041,2.72135,3674.7,3674.1,0.9078]
[1736186447247,2.72115,3675.0,3674.2,0.03471532]
[1736186447572,2.72115,3675.0,3674.4,35.0]
[1736186447573,0.635616,3675.0,3674.4,35.0]
[1736186447775,2.72131,3674.7,3674.4,35.0]
[1736186448080,2.72145,3674.5,3674.4,35.0]
[1736186451574,2.72131,3674.7,3674.1,0.9078]
[1736186451735,0.635616,3675.0,3674.1,0.9078]
[1736186451935,0.49538672,3674.9,3674.1,0.9078]
[1736186452175,0.49538672,3674.9,3674.2,35.0]
[1736186452348,2.72146,3674.5,3674.2,35.0]
[1736186453487,0.9721,3674.8,3674.2,35.0]
[1736186453777,2.72154,3674.4,3674.2,35.0]
[1736186454882,2.72155,3674.4,3674.2,35.0]
[1736186455236,2.7216,3674.3,3674.2,35.0]
[1736186456088,2.72213,3673.6,3672.5,2.72292]
[1736186456382,2.72234,3673.3,3672.7,36.1352715]
[1736186456587,2.72234,3673.3,3672.8,0.9841]
[1736186456938,0.9224,3673.6,3672.8,0.9841]
[1736186457134,0.9224,3673.6,3672.5,1.1352715]
[1736186457376,2.72262,3673.0,3672.6,35.0]
[1736186458569,2.72265,3672.9,3672.6,35.0]
[1736186458769,2.72273,3672.8,3672.6,35.0]
[1736186459083,2.72279,3672.7,3672.6,35.0]
[1736186459281,2.72279,3672.7,3672.1,0.9857]
[1736186459456,2.72305,3672.4,3672.1,0.9857]
[1736186459659,2.72316,3672.2,3671.6,0.0075]
[1736186459844,2.72316,3672.2,3671.8,0.0075]
[1736186460441,2.72327,3672.1,3671.8,0.0075]
[1736186460661,2.72309,3672.3,3671.9,35.0]
[1736186460875,2.72294,3672.5,3671.9,35.0]
[1736186461688,2.72271,3672.8,3671.9,35.0]
[1736186461885,2.72254,3673.1,3672.0,0.03473096]
[1736186462098,2.72278,3672.8,3672.1,0.0075]
[1736186462289,2.72237,3673.3,3672.3,0.0075]
[1736186462588,2.59827032,3673.8,3672.8,0.961]
[1736186462888,2.72251,3673.1,3672.8,0.961]
[1736186463087,2.59827032,3673.5,3672.8,0.9535]
[1736186463295,2.72257,3673.0,3672.9,35.0]
[1736186463789,0.9054,3672.8,3672.0,0.9732]
[1736186464002,2.59827032,3672.7,3672.0,0.9732]
[1736186464188,0.9054,3672.8,3672.1,35.0]
[1736186464189,2.59827032,3672.4,3672.1,35.0]
[1736186464744,2.72316,3672.2,3672.1,35.0]
[1736186465947,4.21500303,3672.2,3672.1,35.0]
[1736186466151,9.21500303,3672.2,3671.3,0.9481]
[1736186466352,9.21500303,3672.2,3671.0,0.9481]
[1736186466353,2.59827032,3672.1,3671.0,0.9481]
[1736186466563,4.21502303,3672.2,3671.0,0.9481]
[1736186466564,2.72387,3671.3,3671.0,0.9481]
[1736186467200,2.7236,3671.6,3671.0,0.9481]
[1736186467378,0.53218703,3671.5,3670.6,0.9422]
[1736186467584,2.72339,3671.9,3670.7,0.03474042]
[1736186467779,2.72376,3671.4,3670.6,0.9422]
[1736186467979,2.72338,3671.9,3670.7,0.02723834]
[1736186468158,2.72345,3671.8,3670.8,0.0075]
[1736186468357,2.72369,3671.5,3670.8,0.0075]
[1736186468554,0.80451003,3671.8,3670.7,0.0075]
[1736186468797,2.72378,3671.4,3670.7,0.0075]
[1736186469291,0.80451003,3671.8,3670.7,0.03473834]
[1736186469508,2.72374,3671.5,3670.7,0.0075]
[1736186469685,2.72385,3671.3,3670.7,0.0075]
[1736186469883,2.72385,3671.3,3670.6,0.9422]
[1736186469884,2.72398,3671.1,3670.6,0.9422]
[1736186470096,0.272374,3671.4,3670.6,0.9422]
[1736186470334,2.72406,3671.0,3670.6,0.9422]
[1736186470472,2.87064432,3671.4,3670.6,0.9422]
[1736186470667,2.72424,3670.8,3670.4,0.0075]
[1736186471209,1.77751003,3671.8,3670.7,0.015]
[1736186471417,1.77751003,3671.8,3670.6,0.9147]
[1736186471418,2.72397,3671.2,3670.6,0.9147]
[1736186471622,2.72364,3671.6,3670.6,0.9147]
[1736186471623,2.72398,3671.1,3670.6,0.9147]
[1736186472084,2.72368,3671.5,3670.6,0.9147]
[1736186472270,2.7238,3671.4,3670.6,0.9147]
[1736186472475,2.72383,3671.3,3670.6,0.9147]
[1736186473589,2.72383,3671.3,3670.3,0.015]
[1736186473590,0.80451003,3671.8,3670.8,0.0075]
[1736186473788,2.72315,3672.3,3671.2,0.0075]
[1736186474061,2.72315,3672.3,3671.4,0.0075]
[1736186474171,2.72315,3672.3,3671.4,0.04223219]
[1736186474367,2.72324,3672.1,3671.6,0.0075]
[1736186474674,2.72348,3671.8,3670.5,0.933]
[1736186475103,2.72348,3671.8,3670.6,0.5725]
[1736186475335,2.72348,3671.8,3671.0,0.015]
[1736186475836,2.995604,3672.1,3671.0,0.015]
[1736186475999,2.72362,3671.6,3671.0,0.015]
[1736186476208,2.72348,3671.8,3671.0,0.015]
[1736186476432,0.55938743,3672.0,3671.0,0.015]
[1736186476634,2.72367,3671.6,3671.0,0.015]
[1736186476783,4.10265775,3672.0,3671.0,0.0075]
[1736186476989,2.72369,3671.5,3671.0,0.0075]
[1736186477734,2.72355,3671.7,3671.0,0.04223758]
[1736186477937,2.72339,3671.9,3671.0,0.04223758]
[1736186478241,2.72339,3671.9,3671.2,0.0075]
[1736186478389,2.72326,3672.1,3671.2,0.04223517]
[1736186478893,0.945,3672.4,3671.2,0.04223517]
[1736186479093,2.72338,3671.9,3671.2,0.015]
[1736186479533,2.72324,3672.1,3671.2,0.04223394]
[1736186479730,2.72331,3672.0,3671.4,0.0075]
[1736186480710,2.7234,3671.9,3671.4,0.0075]
[1736186482363,2.72346,3671.8,3671.4,0.0075]
[1736186482732,0.272346,3671.8,3671.3,0.9631]
[1736186482925,2.72396,3671.2,3670.8,0.9918]
[1736186483130,2.72368,3671.5,3670.8,0.9918]
[1736186483549,2.72406,3671.0,3670.8,0.9918]
[1736186483870,2.72406,3671.0,3670.4,0.015]
[1736186484209,3.0,3671.6,3670.4,0.0075]
[1736186484525,2.724,3671.1,3670.4,0.0075]
[1736186485060,6.24249032,3671.1,3670.3,0.9263]
[1736186485265,2.72439,3670.6,3670.3,0.9263]
[1736186485476,2.72448,3670.5,3670.3,0.9263]
[1736186486380,2.72434,3670.7,3670.3,0.9263]
[1736186486722,2.72437,3670.6,3670.3,0.9263]
[1736186488681,2.72441,3670.6,3670.3,0.9263]
[1736186488978,2.996851,3670.6,3670.3,0.9263]
[1736186489280,0.272441,3670.6,3670.3,0.9263]
[1736186489425,2.72446,3670.5,3670.3,0.9263]
[1736186491567,2.72446,3670.5,3669.8,0.0075]
[1736186492570,2.72446,3670.5,3669.8,0.0347445]
[1736186492888,2.72446,3670.5,3669.8,0.0075]
[1736186493572,0.272346,3671.8,3670.6,0.0225]
[1736186493860,3.51177032,3672.4,3671.0,0.9723]
[1736186494063,0.9135,3672.0,3671.0,0.9723]
[1736186494477,2.72365,3671.6,3671.0,0.9723]
[1736186495284,2.72338,3671.9,3671.0,0.9723]
[1736186495565,3.9135,3671.7,3670.3,0.9557]
[1736186495891,2.72426,3670.8,3670.3,0.9557]
[1736186496021,2.72433,3670.7,3670.3,0.9557]
[1736186496222,2.72448,3670.5,3670.0,0.9056]
[1736186496529,2.72463,3670.3,3669.6,0.9131]
[1736186496726,0.9306,3670.4,3669.6,0.9056]
[1736186497054,3.0,3670.1,3669.2,0.9056]
[1736186497253,2.72511,3669.6,3669.2,0.9056]
[1736186497819,3.0,3670.2,3669.2,0.9056]
[1736186498024,2.72502,3669.7,3669.2,0.9056]
[1736186498335,1.27375968,3670.1,3669.2,0.9056]
[1736186498554,2.72486,3669.9,3669.2,0.9056]
[1736186498863,2.72517,3669.5,3669.2,0.9056]
[1736186499252,2.72524,3669.4,3669.2,0.9056]
[1736186499623,2.72532,3669.3,3668.7,0.9724]
[1736186501093,2.72515,3669.6,3668.8,0.0075]
[1736186501296,3.55555706,3670.2,3668.8,0.0075]
[1736186501297,2.7249,3669.9,3669.1,0.9758]
[1736186501592,2.72494,3669.8,3669.1,0.9758]
[1736186502307,2.72478,3670.1,3669.2,0.03475128]
[1736186502508,1.46923531,3670.4,3669.3,0.9165]
[1736186502509,2.7248,3670.0,3669.3,0.9165]
[1736186502671,2.72488,3669.9,3669.3,0.9165]
[1736186502891,2.72464,3670.2,3668.1,3.08736675]
[1736186503085,2.72533,3669.3,3668.9,0.9165]
[1736186503816,3.55059832,3669.8,3668.9,0.9165]
[1736186503988,2.72581,3668.7,3668.2,0.92]
[1736186504155,2.72587,3668.6,3668.2,0.92]
[1736186504359,2.72553,3669.0,3668.2,0.92]
[1736186504551,2.72605,3668.3,3668.2,0.92]
[1736186504797,3.08236675,3669.1,3668.2,0.92]
[1736186504798,2.72591,3668.5,3668.2,0.92]
[1736186504990,2.72591,3668.5,3668.1,0.005]
[1736186505197,2.72599,3668.4,3668.1,0.005]
[1736186505977,0.9345,3668.9,3668.1,0.005]
[1736186506157,0.72984983,3668.8,3668.1,0.005]
[1736186506354,3.68123,3668.2,3668.1,0.005]
[1736186506557,8.68123,3668.2,3668.1,0.005]
[1736186507817,11.68123,3668.2,3666.8,0.9818]
[1736186507965,2.72683,3667.3,3666.8,0.9818]
[1736186508661,2.72687,3667.2,3666.8,0.9818]
[1736186510107,2.72697,3667.1,3666.3,0.9119]
[1736186510262,2.72697,3667.1,3666.4,0.0075]
[1736186511200,0.365187,3667.2,3666.4,0.0075]
[1736186511366,2.7268,3667.3,3666.4,0.0075]
[1736186512101,2.7268,3667.3,3666.4,0.0347712]
[1736186512408,2.7268,3667.3,3666.4,0.03477075]
[1736186512578,6.28404436,3667.8,3666.4,0.5575]
[1736186512774,1.02704111,3667.7,3666.6,0.0075]
[1736186513007,0.9198,3668.5,3666.8,0.5725]
[1736186513222,2.72606,3668.3,3667.0,0.0075]
[1736186513435,2.72633,3668.0,3667.2,0.5725]
[1736186513723,2.72612,3668.3,3667.4,0.0075]
[1736186513875,2.72621,3668.1,3667.4,0.0075]
[1736186514594,2.72602,3668.4,3667.4,0.9784]
[1736186514799,2.72602,3668.4,3667.6,0.9784]
[1736186515118,2.72602,3668.4,3667.7,0.02726209]
[1736186515625,0.72984983,3668.8,3667.8,0.0075]
[1736186515907,2.72583,3668.7,3667.9,0.9784]
[1736186516208,2.72583,3668.7,3667.9,1.0056603]
[1736186516940,2.72563,3668.9,3668.1,0.015]
[1736186517090,2.72563,3668.9,3668.3,0.9893]
[1736186517413,0.96329651,3669.7,3668.6,0.0075]
[1736186517615,0.54129724,3669.9,3668.6,0.0075]
[1736186517911,2.72539,3669.2,3668.6,0.0075]
[1736186518209,2.7252,3669.5,3668.5,0.9893]
[1736186518709,0.9793,3669.6,3668.5,0.9893]
[1736186518875,2.72575,3668.8,3668.1,0.9602]
[1736186519913,0.9024,3668.7,3667.1,0.9251]
[1736186520332,0.136,3669.0,3667.4,2.7417]
[1736186520333,2.72595,3668.5,3667.4,2.7417]
[1736186520616,3.98476675,3669.1,3667.8,0.0075]
[1736186520812,2.72576,3668.7,3667.8,0.03475987]
[1736186521220,2.72587,3668.6,3667.8,0.0075]
[1736186521379,2.72592,3668.5,3667.8,0.0075]
[1736186521813,0.136,3669.2,3668.0,0.5575]
[1736186521998,2.72562,3668.9,3668.2,0.0075]
[1736186522330,2.72562,3668.9,3668.2,0.03475795]
[1736186522477,2.72586,3668.6,3668.1,0.0075]
[1736186522684,2.72586,3668.6,3667.5,2.72658]
[1736186522685,3.08236675,3668.2,3666.5,0.9674]
[1736186522889,2.72643,3667.8,3666.7,2.72717]
[1736186523094,2.72643,3667.8,3667.2,0.0075]
[1736186523420,2.72643,3667.8,3666.2,2.10622004]
[1736186523421,2.72732,3666.6,3666.2,2.10622004]
[1736186523626,3.08236675,3667.0,3666.2,2.10622004]
[1736186523856,2.72717,3666.8,3666.2,0.9757]
[1736186524122,3.08236675,3667.0,3666.2,0.9757]
[1736186524328,2.72754,3666.3,3666.2,0.9757]
[1736186524694,2.72754,3666.3,3665.7,0.9841]
[1736186524901,3.08236675,3667.0,3665.8,0.02727631]
[1736186525120,0.72682898,3667.0,3666.1,0.0075]
[1736186525451,2.72739,3666.6,3666.1,0.0075]
[1736186525658,2.72742,3666.5,3666.1,0.0075]
[1736186525797,2.72742,3666.5,3666.3,35.0]
[1736186525999,8.08236675,3666.4,3665.6,0.9109]
[1736186526231,5.80984675,3666.4,3665.6,0.9109]
[1736186526408,2.72784,3665.9,3665.3,0.0075]
[1736186526761,2.72792,3665.8,3665.7,35.0]
[1736186526938,7.72792,3665.8,3665.7,35.0]
[1736186527234,5.91067,3665.8,3665.7,35.0]
[1736186527436,6.42119143,3665.8,3665.7,35.0]
[1736186527740,3.23844143,3665.8,3665.7,35.0]
[1736186528059,5.38621,3665.8,3665.7,35.0]
[1736186528202,2.72792,3665.8,3665.7,35.0]
[1736186528507,0.9286,3666.9,3665.8,0.901]
[1736186528711,0.9286,3666.9,3665.1,0.8935]
[1736186528712,3.08236675,3666.6,3665.1,0.8935]
[1736186528926,3.08236675,3666.6,3665.2,0.02727948]
[1736186528927,2.72757,3666.3,3665.2,0.02727948]
[1736186529248,2.72757,3666.3,3665.3,0.5725]
[1736186529434,2.72761,3666.3,3665.5,0.0075]
[1736186529642,2.72761,3666.3,3666.2,35.0]
[1736186532026,7.72761,3666.3,3666.2,35.0]
[1736186532334,2.72761,3666.3,3666.2,35.0]
[1736186532511,2.7274,3666.5,3666.2,35.0]
[1736186533152,3.9286,3666.9,3666.3,0.0075]
[1736186533153,3.0,3666.9,3666.3,0.0075]
[1736186533353,3.0,3666.9,3666.3,0.96547244]
[1736186533567,3.0,3666.9,3666.5,0.0075]
[1736186533777,3.0,3666.9,3666.8,35.0075]
[1736186534047,3.0,3666.9,3666.8,35.9382]
[1736186534544,10.72709,3666.9,3666.8,35.0]
[1736186534749,7.170587,3666.9,3666.8,35.0]
[1736186535104,7.170587,3666.9,3666.0,0.9307]
[1736186535105,2.72747,3666.4,3666.0,0.9307]
[1736186535324,4.443497,3666.9,3666.0,0.9307]
[1736186535613,4.443497,3666.9,3666.1,35.0]
[1736186535614,2.72749,3666.4,3666.1,35.0]
[1736186536913,2.72752,3666.4,3666.1,35.0]
[1736186537107,2.72761,3666.2,3666.1,35.0]
[1736186537431,1.443497,3666.9,3666.1,35.0]
[1736186537638,2.7273,3666.7,3666.1,35.0]
[1736186537940,2.7271,3666.9,3666.2,0.99447462]
[1736186538156,2.72718,3666.8,3666.3,0.02727262]
[1736186538456,2.72695,3667.1,3666.4,0.0075]
[1736186538862,2.72711,3666.9,3666.5,35.0]
[1736186539047,5.0,3666.8,3666.5,35.0]
[1736186539356,0.272711,3666.9,3666.5,35.0]
[1736186539357,2.72732,3666.6,3666.5,35.0]
[1736186539558,4.98237,3666.6,3666.5,35.0]
[1736186539736,2.72732,3666.6,3666.5,35.0]
[1736186539934,5.49453,3666.6,3666.5,35.0]
[1736186540230,2.72732,3666.6,3666.5,35.0]
[1736186540894,2.72717,3666.8,3666.5,35.0]
[1736186541427,2.72703,3667.0,3666.5,35.0]
[1736186541978,2.72689,3667.2,3666.5,35.0]
[1736186542275,3.08236675,3667.4,3666.5,35.0]
[1736186542569,2.72676,3667.4,3666.6,0.0347716]
[1736186542770,2.72676,3667.4,3666.7,0.9284]
[1736186543263,2.72676,3667.4,3666.8,35.0]
[1736186543631,3.08236675,3667.8,3666.9,0.03476925]
[1736186543837,3.08236675,3667.8,3666.9,0.0075]
[1736186544136,2.72667,3667.5,3666.9,0.0075]
[1736186544353,2.72667,3667.5,3667.0,35.0]
[1736186544557,2.72673,3667.4,3667.0,35.0]
[1736186544757,3.08236675,3667.8,3667.0,35.0]
[1736186544965,2.72658,3667.6,3667.0,35.0]
[1736186545376,2.72642,3667.9,3667.1,0.58476706]
[1736186545555,3.08236675,3668.6,3667.3,0.5575]
[1736186545753,2.72605,3668.4,3667.7,0.0075]
[1736186546011,4.40027264,3668.7,3667.9,0.0075]
[1736186546159,4.40027264,3668.7,3667.9,0.03475957]
[1736186546360,1.67450264,3668.7,3668.1,0.0075]
[1736186546712,1.67450264,3668.7,3668.3,0.0075]
[1736186547206,1.67450264,3668.7,3668.2,0.0075]
[1736186547611,1.67450264,3668.7,3668.4,35.0]
[1736186549448,2.72533,3669.3,3668.6,0.9785]
[1736186549654,3.0,3669.7,3668.7,0.02725453]
[1736186549832,3.88073068,3669.7,3669.1,35.0]
[1736186550158,2.72538,3669.2,3669.1,35.0]
[1736186550363,2.72538,3669.2,3667.8,2.72641]
[1736186550364,2.72605,3668.3,3668.2,0.9249]
[1736186550506,3.08236675,3668.8,3667.1,0.9249]
[1736186550707,3.08236675,3668.8,3667.0,1.13052004]
[1736186550708,2.72612,3668.3,3667.7,0.0075]
[1736186550924,2.72591,3668.5,3667.7,35.0075]
[1736186551239,2.72591,3668.5,3667.5,0.0075]
[1736186551240,0.9001,3669.5,3668.2,0.0075]
[1736186551543,2.72549,3669.1,3668.4,0.9671]
[1736186551749,3.08236675,3669.7,3668.6,0.0075]
[1736186551904,0.39824668,3669.6,3668.7,0.02725457]
[1736186552108,2.72539,3669.2,3668.6,0.0075]
[1736186552310,2.72539,3669.2,3668.6,0.03475457]
[1736186552510,2.72539,3669.2,3668.6,0.0075]
[1736186552814,2.72539,3669.2,3668.8,35.0]
[1736186553213,2.72464,3670.2,3669.0,0.565]
[1736186553413,0.80364157,3670.2,3669.1,0.03475223]
[1736186553645,0.80364157,3670.2,3668.9,0.9466]
[1736186553853,2.72486,3669.9,3668.9,0.9466]
[1736186554050,3.08236675,3669.9,3668.9,0.9466]
[1736186554254,2.7254,3669.2,3668.9,0.9466]
[1736186554619,2.72545,3669.2,3668.9,0.9466]
[1736186554923,0.9027,3669.6,3668.8,35.0]
[1736186555469,2.72561,3668.9,3668.8,35.0]
[1736186555615,2.72546,3669.1,3668.8,35.0]
[1736186556231,2.72532,3669.3,3668.8,35.0]
[1736186556418,2.7254,3669.2,3668.8,35.0]
[1736186557058,3.08236675,3669.9,3668.8,35.0]
[1736186557225,2.72505,3669.7,3668.9,0.92645398]
[1736186557549,3.75105583,3669.9,3668.9,0.92645398]
[1736186557721,2.72494,3669.8,3668.9,0.8992]
[1736186557929,2.72539,3669.2,3668.9,0.0075]
[1736186558125,2.72539,3669.2,3668.5,0.0075]
[1736186558532,2.72539,3669.2,3669.0,35.0]
[1736186558727,2.72505,3669.7,3669.1,0.9814]
[1736186558930,0.9069,3670.6,3669.4,0.0075]
[1736186559127,0.9069,3670.6,3669.5,0.9814]
[1736186559363,3.0,3670.4,3669.5,0.9814]
[1736186559556,0.39069,3670.3,3669.8,35.0]
[1736186559722,2.72474,3670.1,3669.8,35.0]
[1736186559916,2.72448,3670.5,3669.9,0.0075]
[1736186560247,2.72438,3670.6,3670.1,0.0075]
[1736186560559,1.11396322,3671.0,3670.1,0.0075]
[1736186560560,2.72427,3670.7,3670.1,0.03474395]
[1736186560764,2.72427,3670.7,3670.2,35.0]
[1736186561068,2.72438,3670.6,3670.2,35.0]
[1736186562363,2.72406,3671.0,3670.3,0.02724395]
[1736186562924,2.72391,3671.2,3670.5,0.9074]
[1736186563265,2.72398,3671.1,3670.5,0.9074]
[1736186563456,2.72414,3670.9,3670.5,0.9074]
[1736186563762,0.43972764,3671.2,3670.5,0.9074]
[1736186563763,2.7242,3670.8,3670.5,0.9074]
[1736186563962,2.7242,3670.8,3670.7,35.0]
[1736186564168,6.2825,3670.8,3670.7,35.0]
[1736186564468,2.7242,3670.8,3670.7,35.0]
[1736186564639,2.724,3671.1,3670.7,35.0]
[1736186565465,2.72406,3671.0,3670.7,35.0]
[1736186565765,2.7242,3670.8,3670.2,0.9673]
[1736186565930,1.38714264,3671.0,3670.2,0.9673]
[1736186566535,2.72425,3670.8,3670.2,0.9673]
[1736186566737,2.72405,3671.0,3670.3,0.5847432]
[1736186566958,4.39724642,3671.3,3670.4,0.0075]
[1736186567169,2.724,3671.1,3670.4,0.0075]
[1736186567357,2.72405,3671.0,3670.4,0.0075]
[1736186567974,2.42132774,3671.3,3670.4,0.0075]
[1736186568336,4.39720642,3671.3,3670.4,0.0075]
[1736186568634,1.67336642,3671.3,3670.7,0.565]
[1736186568873,1.67336642,3671.3,3670.8,0.02723806]
[1736186569682,1.67336642,3671.3,3670.9,0.565]
[1736186569836,1.67336642,3671.3,3671.1,0.9668]
[1736186572260,1.84070306,3671.3,3670.1,0.9668]
[1736186572463,4.39720642,3671.3,3670.3,3.9296]
[1736186572760,4.39720642,3671.3,3670.5,0.0075]
[1736186573091,4.39720642,3671.3,3670.7,0.55]
[1736186573263,1.67336642,3671.3,3670.7,0.55]
[1736186573461,4.39719642,3671.3,3670.7,0.55]
[1736186574412,1.67336642,3671.3,3670.7,0.55]
[1736186575119,1.67336642,3671.3,3670.9,3.2891]
[1736186575297,4.00186675,3672.3,3671.1,0.015]
[1736186575298,2.72324,3672.1,3671.1,0.015]
[1736186575459,2.72324,3672.1,3671.2,0.9082]
[1736186575659,2.72324,3672.1,3671.3,0.02723411]
[1736186576488,2.72312,3672.3,3671.3,3.30105411]
[1736186576659,0.9137,3672.6,3671.3,0.57723411]
[1736186577030,0.67189267,3672.5,3671.4,0.565]
[1736186577327,3.39490267,3672.5,3671.6,0.55]
[1736186577458,2.7231,3672.3,3671.6,0.55]
[1736186577662,0.9843,3672.8,3671.8,0.0075]
[1736186577896,0.95624929,3673.0,3671.9,0.9391]
[1736186577897,2.72288,3672.6,3671.9,0.9391]
[1736186578475,2.72294,3672.5,3671.9,0.9391]
[1736186578895,2.72331,3672.0,3670.7,0.957]
[1736186579076,2.72331,3672.0,3671.0,0.957]
[1736186579276,2.72331,3672.0,3671.1,0.565]
[1736186579493,1.227394,3672.5,3671.1,3.565]
[1736186579698,2.72317,3672.2,3671.3,0.55]
[1736186580403,2.72303,3672.4,3671.6,0.015]
[1736186580609,2.72303,3672.4,3671.6,0.565]
[1736186580808,0.2995324,3672.4,3671.5,0.9616]
[1736186580981,0.2995324,3672.4,3671.6,0.02723325]
[1736186581179,3.0225624,3672.4,3671.6,0.57723325]
[1736186581382,0.2995324,3672.4,3671.6,0.57723325]
[1736186581602,2.72295,3672.5,3671.7,0.015]
[1736186581816,2.72295,3672.5,3671.6,0.55]
[1736186581817,2.72299,3672.5,3671.6,0.55]
[1736186582025,2.72302,3672.4,3671.6,0.55]
[1736186582808,0.9513,3672.9,3671.6,0.55]
[1736186583007,2.72323,3672.2,3671.6,0.55]
[1736186583226,2.72348,3671.8,3671.5,0.9616]
[1736186583591,2.72355,3671.7,3671.5,0.9616]
[1736186583790,2.72323,3672.1,3671.1,2.72393]
[1736186583996,2.72323,3672.1,3671.3,0.015]
[1736186584229,0.9657,3672.6,3671.6,0.0075]
[1736186584531,2.72286,3672.6,3671.9,0.55]
[1736186584841,1.92194929,3673.0,3672.0,0.02722889]
[1736186585036,1.92194929,3673.0,3672.2,0.55]
[1736186585037,0.95624929,3673.0,3672.2,0.55]
[1736186585327,0.95624929,3673.0,3672.3,0.97442697]
[1736186585531,3.67882929,3673.0,3672.3,0.9472]
[1736186585887,0.95624929,3673.0,3672.4,0.55]
[1736186586087,0.95624929,3673.0,3672.5,2.75013697]
[1736186586292,0.95624929,3673.0,3672.5,0.02722697]
[1736186586503,0.95624929,3673.0,3672.4,0.55]
[1736186586700,2.7227,3672.9,3672.4,0.55]
[1736186587352,2.72283,3672.7,3672.3,0.9472]
[1736186587995,0.36789493,3672.9,3672.3,0.9472]
[1736186588202,2.72276,3672.8,3672.3,0.9472]
[1736186588397,0.95624929,3673.0,3672.3,0.9472]
[1736186588816,2.72277,3672.8,3672.3,0.9472]
[1736186589151,3.67881929,3673.0,3672.3,0.9472]
[1736186589498,0.95624929,3673.0,3672.3,0.9472]
[1736186589701,2.7227,3672.9,3672.3,0.9472]
[1736186592414,2.72329,3672.1,3671.2,0.565]
[1736186592595,2.72333,3672.0,3671.2,0.015]
[1736186592801,0.9286,3672.3,3671.2,0.015]
[1736186593454,0.9286,3672.3,3671.2,0.565]
[1736186593803,2.72279,3672.7,3671.8,0.5575]
[1736186594097,2.72265,3672.9,3672.0,0.8871]
[1736186594296,2.72265,3672.9,3672.1,0.02722796]
[1736186594297,0.73176693,3672.9,3672.1,0.02722796]
[1736186594604,0.73176693,3672.9,3672.0,0.8871]
[1736186594748,0.95624929,3673.0,3672.1,0.57722831]
[1736186595109,0.95624929,3673.0,3672.4,0.55]
[1736186596149,0.95624929,3673.0,3672.5,0.02722524]
[1736186596407,0.95624929,3673.0,3672.8,0.55]
[1736186596706,0.95624929,3673.0,3672.9,0.58472347]